bitfinex/quotes_ETHUSD_20250814
["timestamp","ask_amount","ask_price","bid_price","bid_amount"]
[1755173463927,8.3383741,4723.1,4721.7,0.1022]
[1755173464127,3.8520741,4723.1,4721.6,0.1056]
[1755173464336,7.18150135,4723.1,4721.6,0.1056]
[1755173464564,9.29875484,4723.1,4721.6,0.1056]
[1755173464862,2.117351,4722.9,4721.6,0.1056]
[1755173465075,31.16056595,4722.7,4721.6,0.1056]
[1755173465567,38.31429877,4722.7,4721.6,0.1056]
[1755173465728,38.49441703,4722.7,4721.3,3.258]
[1755173465930,34.00811703,4722.7,4721.7,0.1022]
[1755173468259,35.23641703,4722.7,4721.3,3.4658]
[1755173468460,35.23641703,4722.7,4721.3,3.3636]
[1755173468461,3.55,4722.6,4721.3,3.3636]
[1755173468764,3.55,4722.3,4721.3,3.258]
[1755173468948,6.67891234,4722.2,4721.3,3.258]
[1755173469152,7.90721234,4722.2,4721.3,3.258]
[1755173469356,5.78955532,4722.2,4721.3,3.258]
[1755173469541,6.42460932,4722.2,4721.3,3.258]
[1755173469742,0.55,4722.1,4721.6,0.001]
[1755173469956,0.49150476,4722.0,4721.6,0.001]
[1755173470253,0.1056,4721.7,4721.6,0.001]
[1755173470436,0.30202383,4721.7,4721.6,0.1032]
[1755173470839,0.19642383,4721.7,4721.6,0.1032]
[1755173471063,0.19642383,4721.7,4721.6,0.001]
[1755173473668,0.19642383,4721.7,4721.6,0.1032]
[1755173474778,2.10112725,4722.7,4721.6,0.1032]
[1755173474779,0.1056,4722.5,4721.6,0.1032]
[1755173474987,0.1967384,4722.4,4721.6,0.1032]
[1755173475142,0.1967384,4722.3,4721.6,0.2088]
[1755173475343,0.1967384,4722.2,4721.6,0.2088]
[1755173475543,0.1967384,4722.1,4721.6,0.2088]
[1755173475794,0.1056,4722.5,4721.7,0.1022]
[1755173475795,0.1967384,4722.0,4721.7,0.1022]
[1755173475954,0.1967384,4721.9,4721.6,0.1066]
[1755173476278,0.1056,4722.5,4721.8,0.1022]
[1755173476475,0.19684286,4722.4,4721.8,0.1022]
[1755173476655,0.19684286,4722.3,4721.8,0.1022]
[1755173476857,0.19684286,4722.2,4721.8,0.1022]
[1755173477069,0.19684286,4722.1,4721.8,0.1022]
[1755173477268,0.19684286,4722.0,4721.8,0.1022]
[1755173477477,0.19684286,4721.9,4721.8,0.1022]
[1755173478169,0.19684286,4721.9,4721.8,0.2078]
[1755173479398,0.19684286,4721.9,4721.8,0.2088]
[1755173480776,0.1056,4722.8,4721.8,0.2088]
[1755173480964,0.19699992,4722.7,4721.8,0.2088]
[1755173481160,0.19699992,4722.6,4722.1,0.1056]
[1755173481360,0.98459992,4722.5,4722.1,0.1056]
[1755173481562,0.19699992,4722.4,4722.1,0.1056]
[1755173481858,0.19699992,4722.3,4722.1,0.1056]
[1755173482087,0.19699992,4722.2,4722.1,0.1056]
[1755173482292,0.19619992,4722.2,4722.1,0.1064]
[1755173483378,0.1056,4722.7,4722.1,0.1064]
[1755173484396,1.2435,4722.6,4722.1,0.0008]
[1755173484700,1.3491,4722.5,4721.8,0.1066]
[1755173485166,0.97785,4722.5,4721.8,0.1066]
[1755173485366,0.4559,4722.4,4721.8,0.1066]
[1755173486296,0.19025,4722.5,4721.8,0.1066]
[1755173486975,1.40458186,4722.8,4721.8,0.1066]
[1755173486976,0.16108186,4722.8,4721.9,0.02117791]
[1755173487189,0.16108186,4722.8,4722.3,0.1056]
[1755173487190,0.1056,4722.8,4722.3,0.1056]
[1755173487498,0.2122,4722.8,4722.3,0.1056]
[1755173489516,1.2435,4722.7,4722.3,0.1056]
[1755173489700,0.2122,4722.8,4722.3,0.1056]
[1755173490008,1.2435,4722.6,4722.3,0.1056]
[1755173490799,1.2435,4722.5,4722.3,0.1056]
[1755173491571,0.6681,4722.8,4722.3,0.1056]
[1755173491767,0.2122,4722.8,4722.3,0.1056]
[1755173491991,1.2435,4722.7,4722.3,0.1056]
[1755173492198,1.2435,4722.6,4722.3,0.1056]
[1755173492586,1.2435,4722.6,4722.3,0.1064]
[1755173492968,0.2122,4722.8,4722.3,0.1064]
[1755173493167,1.2435,4722.7,4722.3,0.1064]
[1755173493404,0.2122,4722.8,4722.3,0.1064]
[1755173493575,1.2435,4722.6,4722.3,0.1064]
[1755173494407,0.19781863,4722.5,4722.3,0.1064]
[1755173494569,0.19781863,4722.4,4722.3,0.1064]
[1755173495408,1.2435,4722.6,4722.3,0.1064]
[1755173495604,0.19781518,4722.5,4722.3,0.1064]
[1755173495805,1.2435,4722.5,4722.3,0.1064]
[1755173496397,0.2122,4722.8,4722.3,0.1064]
[1755173496598,1.60307973,4722.7,4722.3,0.1064]
[1755173496772,0.1056,4722.4,4722.3,0.0008]
[1755173496978,1.54691821,4722.4,4722.3,0.0008]
[1755173497776,1.65351821,4722.4,4721.8,0.001]
[1755173497978,1.2435,4722.3,4721.8,0.001]
[1755173498177,0.16174615,4722.3,4721.8,0.001]
[1755173498413,1.2435,4722.2,4721.8,0.001]
[1755173498713,1.2435,4722.1,4721.8,0.001]
[1755173498875,0.2122,4722.4,4721.8,0.001]
[1755173499909,0.61781521,4722.9,4721.8,0.001]
[1755173499910,0.1056,4722.8,4722.1,0.1056]
[1755173500287,3.0,4722.7,4721.9,0.1056]
[1755173500488,3.0,4722.5,4721.9,0.1056]
[1755173500838,0.1056,4722.2,4721.8,0.001]
[1755173501134,1.2435,4722.1,4721.8,0.001]
[1755173501308,0.1056,4722.2,4721.8,0.001]
[1755173501309,1.2435,4722.0,4721.8,0.001]
[1755173501516,0.1056,4722.2,4721.8,0.001]
[1755173501692,1.2435,4721.9,4721.8,0.001]
[1755173502419,1.441902,4721.9,4721.8,0.001]
[1755173502614,1.547502,4721.9,4721.8,0.0018]
[1755173503012,0.759902,4721.9,4721.8,0.0018]
[1755173503189,0.1056,4721.9,4721.8,0.0018]
[1755173503404,1.3491,4721.9,4721.8,0.0018]
[1755173503920,0.8932,4721.9,4721.8,0.0018]
[1755173504115,0.1056,4721.9,4721.8,0.0018]
[1755173504319,1.3483,4721.9,4721.8,0.0018]
[1755173504495,1.546622,4721.9,4721.8,0.0018]
[1755173505433,32.60158795,4721.9,4721.8,0.0018]
[1755173505609,37.45158795,4721.9,4721.8,0.0018]
[1755173507340,38.08664095,4721.9,4721.8,0.0018]
[1755173507913,8.39658869,4721.9,4721.8,0.0018]
[1755173508128,7.56321369,4721.9,4721.8,0.0018]
[1755173508302,8.80671369,4721.9,4721.8,0.0018]
[1755173509408,7.56321369,4721.9,4721.8,0.0018]
[1755173509851,8.80671369,4721.9,4721.8,0.0018]
[1755173510020,36.86167964,4721.9,4721.8,0.0018]
[1755173510352,38.96280689,4721.9,4721.8,0.0018]
[1755173513337,39.59784589,4721.9,4721.8,0.0018]
[1755173514348,40.14864589,4721.9,4721.8,0.0018]
[1755173514855,54.64864589,4721.9,4721.8,0.0018]
[1755173515833,26.13777994,4721.9,4721.8,0.0018]
[1755173516040,12.08927994,4721.9,4721.8,0.0018]
[1755173519024,7.78927994,4721.9,4721.8,0.0018]
[1755173520722,7.00167994,4721.9,4721.8,0.0018]
[1755173520928,0.26401369,4721.9,4721.8,0.0018]
[1755173522460,4.45291369,4721.9,4721.8,0.0018]
[1755173522861,5.00291369,4721.9,4721.8,0.0018]
[1755173523063,7.12070525,4721.9,4721.8,0.0018]
[1755173523767,7.32037946,4721.9,4721.8,0.0018]
[1755173524066,9.42150671,4721.9,4721.8,0.0018]
[1755173524850,7.30371515,4721.9,4721.8,0.0018]
[1755173525429,9.42150671,4721.9,4721.8,0.0018]
[1755173525762,7.30371515,4721.9,4721.8,0.0018]
[1755173525978,5.91714094,4721.9,4721.8,0.0018]
[1755173526279,7.10604094,4721.9,4721.8,0.0018]
[1755173526494,2.36634094,4721.9,4721.8,0.0018]
[1755173526852,0.26521369,4721.9,4721.8,0.0018]
[1755173527543,0.1076,4721.9,4721.8,0.0018]
[1755173528498,0.002,4721.9,4721.8,0.104]
[1755173529262,0.002,4721.9,4721.8,0.12517836]
[1755173529449,0.002,4721.9,4721.8,2.22183641]
[1755173529790,0.002,4721.9,4721.8,2.32743641]
[1755173533053,0.002,4721.9,4721.8,5.87743641]
[1755173535289,0.002,4722.4,4722.2,0.55]
[1755173535586,0.002,4722.4,4722.3,5.7909883]
[1755173535757,0.002,4722.4,4722.3,5.76981218]
[1755173535957,0.002,4722.4,4722.3,5.87541218]
[1755173537361,0.002,4722.4,4722.3,9.13241218]
[1755173542284,0.002,4722.7,4722.6,2.66747766]
[1755173542486,0.002,4722.7,4722.6,5.79425243]
[1755173542693,0.002,4722.7,4722.6,5.87527766]
[1755173543280,0.002,4722.7,4722.6,9.13027766]
[1755173543586,1e-08,4722.7,4722.6,9.13027766]
[1755173543966,1e-08,4722.9,4722.8,2.66738799]
[1755173544205,1e-08,4722.9,4722.8,5.79076186]
[1755173544409,1e-08,4722.9,4722.8,5.76958799]
[1755173545106,1e-08,4723.2,4723.1,2.66725349]
[1755173545277,1e-08,4723.4,4723.3,5.66716384]
[1755173545673,1e-08,4723.4,4723.3,5.76936384]
[1755173545876,1e-08,4723.4,4723.3,5.77016384]
[1755173546905,1e-08,4723.4,4723.3,5.66796384]
[1755173547114,1e-08,4723.4,4723.3,8.92296384]
[1755173549382,1e-08,4723.4,4723.3,0.0008]
[1755173549582,1e-08,4723.4,4723.3,3.2548]
[1755173549583,1.14650001,4723.4,4723.3,3.2548]
[1755173551432,1e-08,4723.4,4723.3,5.39313547]
[1755173551606,1e-08,4723.4,4723.3,8.92196384]
[1755173552231,1.14650001,4723.4,4723.3,3.0008]
[1755173552400,1.14650001,4723.4,4723.3,6.2548]
[1755173552924,1.14650001,4723.4,4723.3,3.2548]
[1755173554804,1.14650001,4723.4,4723.3,3.27597163]
[1755173555005,1.14650001,4723.4,4723.3,3.2548]
[1755173558725,1.14650001,4723.4,4723.3,0.0008]
[1755173558927,1.26135001,4723.4,4723.1,5.075]
[1755173559084,1.1465,4723.3,4723.1,5.075]
[1755173559283,1.1465,4723.2,4723.1,5.075]
[1755173560226,1.1465,4723.2,4723.1,8.329]
[1755173560409,1.1465,4723.2,4723.1,8.4346]
[1755173561114,1.45853731,4723.2,4723.1,8.329]
[1755173562215,1.45853731,4723.2,4723.1,8.3298]
[1755173564394,1.45835571,4723.2,4723.1,8.3298]
[1755173565210,1.26115,4723.2,4723.1,8.3298]
[1755173565494,0.694,4723.2,4723.1,8.4354]
[1755173565694,1e-08,4723.4,4723.1,8.4354]
[1755173566002,1.14650001,4723.4,4723.1,8.4354]
[1755173566201,1.1465,4723.3,4723.1,8.4354]
[1755173566402,1.1465,4723.3,4723.1,8.3298]
[1755173566606,1.1465,4723.3,4723.2,0.1056]
[1755173566833,0.4525,4723.3,4723.2,0.1056]
[1755173567401,1.1465,4723.3,4723.2,0.1056]
[1755173568947,1e-08,4723.4,4723.2,0.1056]
[1755173569114,1e-08,4723.4,4723.3,3.255]
[1755173572297,1e-08,4723.4,4723.3,5.37216384]
[1755173572501,1e-08,4723.4,4723.3,5.37296384]
[1755173573203,1e-08,4723.4,4723.3,3.2558]
[1755173573400,0.43030001,4723.4,4723.3,3.2558]
[1755173573600,1.12570001,4723.4,4723.3,3.2558]
[1755173575980,1e-08,4723.4,4723.3,3.27697163]
[1755173576238,1e-08,4723.4,4723.3,9.04633547]
[1755173576441,1e-08,4723.4,4723.3,9.02516384]
[1755173578352,1e-08,4723.4,4723.3,8.92296384]
[1755173579920,1e-08,4723.4,4723.3,9.02516384]
[1755173581247,1e-08,4723.8,4723.7,2.66698456]
[1755173581414,1e-08,4723.8,4723.7,8.9421544]
[1755173581614,1e-08,4723.8,4723.7,9.02318456]
[1755173582927,1e-08,4723.8,4723.7,9.02398456]
[1755173584912,1e-08,4723.8,4723.7,8.92178456]
[1755173586028,1e-08,4723.8,4723.7,9.02738456]
[1755173592235,0.00120001,4723.9,4723.8,5.66693975]
[1755173593543,0.00120001,4723.9,4723.8,5.66773975]
[1755173605976,1.14350001,4723.9,4723.8,8.91973975]
[1755173606595,0.00120001,4723.9,4723.8,8.91973975]
[1755173607285,0.00120001,4723.9,4723.8,9.02533975]
[1755173608699,1.14350001,4723.9,4723.8,9.02533975]
[1755173609246,1.14350001,4723.9,4723.8,6.9084]
[1755173609523,1.14350001,4723.9,4723.8,3.3584]
[1755173609885,1.14350001,4723.9,4723.8,6.3584]
[1755173610544,1.14350001,4723.9,4723.8,3.3584]
[1755173610722,1.14350001,4723.9,4723.2,0.001]
[1755173610723,1.25825001,4723.9,4723.2,0.001]
[1755173610884,1.1423,4723.8,4723.2,5.073]
[1755173611087,1.1423,4723.7,4722.1,3.0]
[1755173611316,0.11595001,4723.9,4721.8,0.001]
[1755173611317,1.1423,4723.6,4721.8,0.001]
[1755173611531,0.11595001,4723.9,4721.8,0.001]
[1755173611532,0.00120001,4723.9,4721.8,0.001]
[1755173611746,1.1423,4723.5,4721.8,0.001]
[1755173611904,0.00120001,4723.9,4722.8,8.324]
[1755173612083,1.1423,4723.4,4722.8,8.324]
[1755173612288,0.00120001,4723.9,4722.8,8.324]
[1755173612289,1.25653,4723.3,4722.8,8.324]
[1755173612488,1.1423,4723.2,4722.8,8.324]
[1755173612684,0.11423,4723.3,4722.8,8.324]
[1755173612884,1.1423,4723.1,4722.8,8.324]
[1755173613191,1.1423,4723.0,4722.8,8.324]
[1755173613421,1.1423,4722.9,4722.8,8.324]
[1755173621055,1.1423,4723.4,4722.8,8.324]
[1755173621211,0.00120001,4723.9,4722.8,8.324]
[1755173621212,0.00120001,4723.9,4722.9,3.0]
[1755173621411,0.4409,4723.8,4723.0,3.252]
[1755173621723,0.7014,4723.7,4723.0,3.252]
[1755173621923,0.4409,4723.6,4723.0,3.252]
[1755173622311,0.4409,4723.6,4723.0,3.2528]
[1755173622551,0.00120001,4723.9,4723.1,0.55]
[1755173622717,0.44210001,4723.9,4723.2,3.253]
[1755173623114,0.00120001,4723.9,4723.3,3.0]
[1755173623319,0.00120001,4723.9,4723.5,2.99596]
[1755173623554,0.00120001,4723.9,4723.6,3.27417029]
[1755173624441,0.00120001,4723.9,4723.6,3.253]
[1755173625314,0.00120001,4723.9,4723.7,3.0]
[1755173625539,0.00120001,4723.9,4723.8,3.252]
[1755173626850,1.14350001,4723.9,4723.8,3.252]
[1755173631447,0.70260001,4723.9,4723.8,3.252]
[1755173631638,1.14170001,4723.9,4723.8,3.252]
[1755173632357,1.14170001,4723.9,4723.8,3.2528]
[1755173633560,1.25627001,4723.9,4723.8,3.2528]
[1755173636477,1.14170001,4723.9,4723.8,3.2528]
[1755173636951,0.00120001,4723.9,4723.8,3.2528]
[1755173637262,1.15740001,4723.9,4723.8,3.2528]
[1755173641399,1.15740001,4723.9,4723.8,0.0008]
[1755173641689,1.15740001,4723.9,4723.8,3.251]
[1755173641845,1.27354001,4723.9,4723.8,3.251]
[1755173642245,1.27274001,4723.9,4723.8,3.251]
[1755173642534,1.27274001,4723.9,4723.8,3.2518]
[1755173645503,1.15660001,4723.9,4723.8,3.2518]
[1755173646258,0.00040001,4723.9,4723.8,3.2518]
[1755173646463,0.00040001,4723.9,4723.8,3.27296939]
[1755173647006,0.00040001,4723.9,4723.8,3.37856939]
[1755173647355,0.00040001,4723.9,4723.8,6.48276939]
[1755173647600,0.00040001,4723.9,4723.8,6.4616]
[1755173648782,0.00040001,4723.9,4723.8,7.0116]
[1755173649002,0.00040001,4723.9,4723.8,7.0421]
[1755173649302,0.00040001,4723.9,4723.8,9.15903975]
[1755173650873,0.00040001,4723.9,4723.8,9.02433975]
[1755173651073,0.00040001,4723.9,4723.8,9.12853975]
[1755173651405,0.00040001,4723.9,4723.8,6.9074]
[1755173652410,0.00040001,4723.9,4723.8,6.3574]
[1755173655410,0.00040001,4723.9,4723.8,3.1064]
[1755173655712,0.00040001,4723.9,4723.8,3.3564]
[1755173655713,1.15660001,4723.9,4723.8,3.3564]
[1755173661041,0.00040001,4723.9,4723.8,3.3564]
[1755173663250,0.46920001,4723.9,4723.8,3.3564]
[1755173663452,1.15120001,4723.9,4723.8,3.3564]
[1755173663636,0.00040001,4723.9,4723.8,3.3564]
[1755173664548,1.15240001,4724.2,4723.8,3.2508]
[1755173664855,1.1508,4724.1,4723.8,3.3564]
[1755173665027,0.4688,4724.0,4723.8,3.2508]
[1755173665231,1.1508,4724.0,4723.9,3.25]
[1755173665427,1.26644,4724.0,4723.9,3.25]
[1755173667522,1.26644,4724.0,4723.8,0.0008]
[1755173667738,0.11564,4724.0,4723.9,3.25]
[1755173667962,0.10720001,4724.2,4723.9,3.25]
[1755173668445,1.1508,4724.1,4723.8,0.0008]
[1755173668756,1.1508,4724.0,4723.8,0.0008]
[1755173669056,1.1508,4723.9,4723.6,5.075]
[1755173669262,1.1508,4723.8,4723.6,5.075]
[1755173669558,1.1508,4723.7,4723.6,5.075]
[1755173669782,1.1508,4723.7,4723.6,8.325]
[1755173669922,0.57600001,4724.2,4723.6,8.325]
[1755173670578,0.00160001,4724.2,4723.7,0.02116984]
[1755173670743,0.00160001,4724.2,4723.8,3.25]
[1755173670945,0.00160001,4724.2,4723.9,0.02116894]
[1755173671159,0.00160001,4724.2,4723.7,0.02116984]
[1755173671475,0.00160001,4724.2,4723.6,5.075]
[1755173672042,0.47040001,4724.2,4723.6,5.075]
[1755173672340,0.47040001,4724.2,4723.7,3.25]
[1755173672777,1.1508,4724.1,4723.7,3.25]
[1755173673076,1.1508,4724.0,4723.7,3.25]
[1755173673262,0.00160001,4724.2,4723.7,3.25]
[1755173673577,1.1508,4723.9,4723.7,3.25]
[1755173673876,0.00160001,4724.2,4723.7,3.25]
[1755173674250,0.4688,4724.1,4723.7,3.25]
[1755173674973,0.68360001,4724.2,4723.7,3.25]
[1755173675174,0.00160001,4724.2,4723.7,3.25]
[1755173677144,0.47040001,4724.2,4723.7,3.25]
[1755173677357,1.15240001,4724.2,4723.7,3.25]
[1755173678185,1.1508,4724.1,4723.7,3.25]
[1755173678396,0.4688,4724.0,4723.7,3.25]
[1755173680500,0.682,4724.1,4723.7,3.25]
[1755173680876,0.00160001,4724.2,4723.7,3.25]
[1755173682390,0.00160001,4724.2,4723.7,3.2508]
[1755173684207,1.1508,4724.1,4723.7,3.2508]
[1755173684572,1.1508,4724.0,4723.7,3.2508]
[1755173684899,0.4688,4723.9,4723.7,3.2508]
[1755173685609,0.682,4724.0,4723.7,3.2508]
[1755173686605,0.47040001,4724.2,4723.7,3.2508]
[1755173686904,0.00160001,4724.2,4723.7,3.2508]
[1755173687090,1.1508,4724.1,4723.7,3.2508]
[1755173687296,0.00160001,4724.2,4723.7,3.2508]
[1755173688813,0.00160001,4724.2,4723.8,0.57116939]
[1755173689010,0.00160001,4724.2,4723.9,3.248]
[1755173692479,0.00160001,4724.2,4723.9,3.2488]
[1755173700500,1.1309,4724.1,4723.9,3.2488]
[1755173700705,1.1309,4724.0,4723.9,3.2488]
[1755173701324,1.1309,4724.0,4723.9,6.2488]
[1755173702492,1.1309,4724.0,4723.9,0.0008]
[1755173702695,1.1309,4724.0,4723.9,3.2478]
[1755173704012,0.00160001,4724.2,4723.9,3.2478]
[1755173704328,1.1309,4724.1,4723.9,3.2478]
[1755173704537,0.00160001,4724.2,4723.9,3.2478]
[1755173705356,0.00160001,4724.2,4723.9,0.0008]
[1755173705701,0.00160001,4724.2,4723.9,2.11767255]
[1755173705998,0.00160001,4724.2,4723.9,2.20223555]
[1755173706447,0.00160001,4724.2,4723.9,2.35852181]
[1755173707424,0.00160001,4724.2,4723.9,2.70088603]
[1755173707754,0.00160001,4724.2,4723.9,2.51783416]
[1755173707958,0.00160001,4724.2,4723.9,2.35852181]
[1755173709737,0.00160001,4724.2,4723.9,5.35852181]
[1755173709942,0.00160001,4724.2,4723.9,2.35852181]
[1755173710935,0.00160001,4724.2,4723.9,2.20225725]
[1755173711326,0.00160001,4724.2,4723.9,0.085363]
[1755173711742,1.1309,4724.1,4723.9,0.085363]
[1755173711944,0.6918,4724.1,4723.9,0.0008]
[1755173712256,1.1309,4724.1,4723.9,0.0008]
[1755173712450,0.00160001,4724.2,4723.9,0.0008]
[1755173713359,0.4391,4724.1,4723.9,0.0008]
[1755173713561,1.1309,4724.0,4723.3,0.001]
[1755173713761,1.1309,4724.0,4723.9,0.0008]
[1755173713762,0.6918,4724.0,4723.9,0.0008]
[1755173714347,1.1309,4724.0,4723.9,0.0008]
[1755173714831,1.1309,4724.0,4723.9,6.245]
[1755173715161,0.00160001,4724.2,4723.9,6.245]
[1755173715362,0.00160001,4724.2,4723.9,3.245]
[1755173716124,0.00160001,4724.2,4723.9,5.36188361]
[1755173716927,0.002,4724.0,4723.9,5.36188361]
[1755173717583,0.002,4724.0,4723.9,6.329554]
[1755173717584,0.4411,4724.0,4723.9,6.329554]
[1755173717730,0.4411,4724.0,4723.9,6.245]
[1755173717930,0.002,4724.0,4723.9,6.245]
[1755173718469,0.002,4724.0,4723.9,8.36189493]
[1755173719185,0.002,4724.0,4723.9,8.91189493]
[1755173719363,0.002,4724.0,4723.9,9.01749493]
[1755173721171,0.002,4724.0,4723.9,5.66689493]
[1755173721356,0.002,4724.0,4723.9,8.91189493]
[1755173721667,0.002,4724.0,4723.9,5.36189493]
[1755173721871,1.1513,4724.0,4723.9,10.43389493]
[1755173722167,1.1513,4724.0,4723.9,13.43389493]
[1755173722572,0.002,4724.0,4723.9,13.43389493]
[1755173724042,0.002,4724.0,4723.9,14.62929493]
[1755173724246,0.002,4724.0,4723.9,14.80208873]
[1755173724445,0.002,4724.0,4723.9,14.62929493]
[1755173724762,0.002,4724.0,4723.9,10.73969493]
[1755173724962,0.002,4724.0,4723.9,13.44169493]
[1755173725174,0.4737,4724.0,4723.9,13.44169493]
[1755173725376,1.1513,4724.0,4723.9,13.44169493]
[1755173725677,0.002,4724.0,4723.9,13.44169493]
[1755173726447,0.4737,4724.0,4723.9,13.44169493]
[1755173727484,0.002,4724.0,4723.9,13.44169493]
[1755173727648,0.002,4724.0,4723.9,13.99169493]
[1755173727844,0.002,4724.0,4723.9,14.63629493]
[1755173729005,0.002,4724.0,4723.9,13.99169493]
[1755173729186,0.4737,4724.0,4723.9,13.44169493]
[1755173729365,1.1513,4724.0,4723.9,13.44169493]
[1755173729556,0.4737,4724.0,4723.9,13.44169493]
[1755173730157,0.4737,4724.0,4723.9,11.3248]
[1755173730360,0.4737,4724.0,4723.9,8.3248]
[1755173730361,1.1513,4724.0,4723.9,8.3248]
[1755173731389,1.1513,4724.0,4723.9,11.3248]
[1755173731707,1.1513,4724.0,4723.9,11.4304]
[1755173736478,1.1513,4724.0,4723.9,5.1784]
[1755173736676,1.2513,4724.0,4723.9,8.4314]
[1755173736918,1.37699,4724.0,4723.9,5.0728]
[1755173737080,1.37699,4724.0,4723.8,0.001]
[1755173737282,0.0992,4723.5,4723.4,5.072]
[1755173737611,0.0992,4723.0,4722.9,0.001]
[1755173737781,0.0992,4723.0,4722.9,5.072]
[1755173737984,1.3541,4723.0,4722.9,5.072]
[1755173738184,1.1785,4723.0,4722.9,5.072]
[1755173738384,1.1785,4723.0,4722.9,8.329]
[1755173739810,29.78346595,4723.0,4722.9,8.329]
[1755173740780,31.8845932,4723.0,4722.9,8.329]
[1755173741605,34.8845932,4723.0,4722.9,8.329]
[1755173741811,0.0292,4722.7,4722.3,0.001]
[1755173742018,1.86056791,4722.7,4722.3,0.001]
[1755173742217,1.8341,4722.7,4722.3,0.001]
[1755173742417,6.93522725,4722.7,4722.3,0.001]
[1755173743003,6.93522725,4722.7,4722.6,3.257]
[1755173743404,3.55,4722.6,4722.3,0.001]
[1755173743608,1.6993,4722.6,4722.3,0.001]
[1755173743904,0.1348,4722.4,4722.3,0.001]
[1755173744083,1.67762272,4722.4,4722.3,0.001]
[1755173744908,2.22762272,4722.4,4722.3,3.258]
[1755173746634,0.5792,4721.9,4721.8,0.001]
[1755173747035,1.7285,4721.9,4721.8,0.001]
[1755173747335,1.8341,4721.9,4721.8,0.001]
[1755173747487,2.32015707,4721.9,4721.8,0.001]
[1755173747689,1.8341,4721.9,4721.8,0.001]
[1755173748420,1.8341,4721.9,4721.8,3.256]
[1755173749989,0.0292,4721.5,4721.4,5.075]
[1755173750195,29.23346595,4721.5,4721.4,8.329]
[1755173750427,29.33906595,4721.5,4721.4,8.329]
[1755173750734,31.4401932,4721.5,4721.4,8.329]
[1755173751093,2.70762725,4721.5,4721.4,8.329]
[1755173751298,0.0292,4721.5,4721.4,8.329]
[1755173751789,0.0292,4721.5,4721.4,10.102]
[1755173752141,0.0292,4721.5,4721.4,8.4346]
[1755173752341,0.0292,4721.5,4721.4,10.102]
[1755173752507,0.0292,4721.5,4721.4,13.102]
[1755173752716,0.0292,4721.6,4721.5,3.0]
[1755173752910,0.0292,4721.6,4721.5,4.6742]
[1755173753496,0.0292,4721.6,4721.5,4.6674]
[1755173753719,0.0292,4721.6,4721.5,3.0]
[1755173754131,0.0292,4721.6,4721.5,4.6674]
[1755173754323,0.0292,4721.6,4721.5,4.6742]
[1755173754519,0.0292,4721.6,4721.5,6.79217098]
[1755173754829,0.0292,4722.3,4721.5,4.6742]
[1755173755004,0.0292,4722.3,4722.0,2.11774133]
[1755173755211,0.0292,4722.3,4722.2,3.1056]
[1755173755427,0.0292,4722.7,4722.2,5.0348]
[1755173755644,0.0292,4722.3,4722.2,3.3674]
[1755173756195,0.0292,4722.6,4722.2,5.48505702]
[1755173756401,0.0292,4722.3,4722.2,8.37945702]
[1755173756902,0.0292,4722.3,4722.2,10.15245702]
[1755173757103,0.0292,4722.6,4722.2,8.0348]
[1755173757327,0.0292,4722.6,4722.2,6.3674]
[1755173757531,0.0292,4722.6,4722.5,0.1056]
[1755173757734,0.0292,4722.6,4722.5,6.3586]
[1755173759049,0.0292,4722.6,4722.5,3.1056]
[1755173759299,0.0292,4721.9,4721.5,3.0]
[1755173759507,0.0292,4721.9,4721.7,3.0]
[1755173759730,0.0292,4721.9,4721.8,6.253]
[1755173760305,0.0292,4722.2,4721.9,3.0]
[1755173760505,0.0292,4722.5,4722.1,3.0]
[1755173760704,0.0292,4722.5,4722.4,5.11756733]
[1755173760926,0.0292,4722.5,4722.4,7.9204]
[1755173761704,0.0292,4722.5,4722.4,6.253]
[1755173762305,0.0292,4722.5,4722.4,6.2538]
[1755173764554,0.002,4722.6,4722.4,7.928]
[1755173764758,0.002,4722.6,4722.5,5.12432249]
[1755173764961,0.0312,4722.6,4722.5,6.79172249]
[1755173765163,0.0312,4722.6,4722.5,6.78492249]
[1755173765320,0.0312,4722.6,4722.5,3.251]
[1755173766765,0.002,4722.6,4722.5,4.9184]
[1755173767256,0.002,4722.6,4722.5,7.9184]
[1755173767673,0.002,4722.6,4722.5,6.251]
[1755173767871,0.002,4722.6,4722.5,3.0]
[1755173768063,0.002,4722.6,4722.5,6.249]
[1755173768466,0.002,4722.6,4722.5,3.0]
[1755173768774,0.002,4722.6,4722.5,6.249]
[1755173769079,0.002,4722.6,4722.5,8.36652249]
[1755173769236,0.002,4722.6,4722.5,8.022]
[1755173769580,0.002,4722.6,4722.5,6.3546]
[1755173769735,0.4982,4722.6,4722.5,6.3546]
[1755173770076,2.1313,4722.6,4722.5,0.1056]
[1755173770241,2.1313,4722.6,4722.5,3.3576]
[1755173771892,0.4982,4722.6,4722.5,3.3576]
[1755173772481,0.4982,4722.6,4722.5,3.3584]
[1755173773282,2.1313,4722.6,4722.5,3.3584]
[1755173773488,0.4982,4722.6,4722.5,3.3584]
[1755173776640,2.1313,4722.6,4722.5,3.3584]
[1755173779228,2.34463,4722.6,4722.5,3.3584]
[1755173779409,2.34463,4722.6,4722.5,3.2528]
[1755173779608,2.1313,4722.6,4722.5,3.2528]
[1755173780703,0.0292,4721.9,4721.8,0.001]
[1755173780931,2.6793,4721.9,4721.8,3.249]
[1755173781136,2.6793,4721.9,4721.8,0.001]
[1755173781314,0.55,4721.4,4721.1,0.001]
[1755173781513,0.5792,4720.7,4720.3,0.001]
[1755173781702,0.55,4720.5,4720.4,3.252]